fUST/lending_fUST_20250718
["ID","MTS","AMOUNT","RATE_DAILY","PERIOD"]
[372917362,1752805576391,-500.0,0.00016438,2]
[372917363,1752805576418,-460.0,0.00016438,2]
[372917364,1752805576444,-460.0,0.00016438,2]
[372917365,1752805576467,-450.0,0.00016438,2]
[372917366,1752805576492,-460.0,0.00016438,2]
[372917367,1752805576515,-460.0,0.00016438,2]
[372917368,1752805576540,-460.0,0.00016438,2]
[372917369,1752805576564,-460.0,0.00016438,2]
[372917370,1752805576588,-460.0,0.00016438,2]
[372917371,1752805576611,-466.580985,0.00016438,2]
[372917372,1752805576635,-981.11,0.00016438,2]
[372917373,1752805576660,-460.0,0.00016438,2]
[372917374,1752805576684,-460.0,0.00016438,2]
[372917375,1752805576707,-460.0,0.00016438,2]
[372917376,1752805576731,-240.62,0.00016438,2]
[372917377,1752805576753,-463.8142328,0.00016438,2]
[372917378,1752805576776,-460.0,0.00016438,2]
[372917379,1752805576801,-460.0,0.00016438,2]
[372917380,1752805576826,-1599.91,0.00016438,2]
[372917381,1752805576850,-512.46502629,0.00016438,2]
[372917382,1752805576876,-1043.45,0.00016438,2]
[372917383,1752805576899,-460.0,0.00016438,2]
[372917384,1752805576923,-785.69,0.00016438,2]
[372917385,1752805576947,-460.0,0.00016438,2]
[372917386,1752805576970,-487.6,0.00016438,2]
[372917387,1752805576993,-460.0,0.00016438,2]
[372917388,1752805577016,-500.0,0.00016438,2]
[372917389,1752805577039,-516.18287834,0.00016438,2]
[372917390,1752805577063,-460.0,0.00016438,2]
[372917391,1752805577088,-556.81308536,0.00016438,2]
[372917392,1752805577112,-462.61809028,0.00016438,2]
[372917393,1752805577136,-470.28205408,0.00016438,2]
[372917394,1752805577279,-460.0,0.00016438,2]
[372917395,1752805577308,-460.0,0.00016438,2]
[372917396,1752805577333,-460.0,0.00016438,2]
[372917397,1752805577358,-460.0,0.00016438,2]
[372917398,1752805577383,-460.0,0.00016438,2]
[372917399,1752805577408,-460.0,0.00016438,2]
[372917400,1752805577434,-466.74089404,0.00016438,2]
[372917401,1752805577459,-460.0,0.00016438,2]
[372917402,1752805577485,-460.0,0.00016438,2]
[372917403,1752805577509,-460.0,0.00016438,2]
[372917404,1752805577533,-460.0,0.00016438,2]
[372917405,1752805577558,-747.04,0.00016438,2]
[372917406,1752805577581,-2529.55,0.00016438,2]
[372917407,1752805577606,-460.0,0.00016438,2]
[372917408,1752805577629,-409.92393833,0.00016438,2]
[372917409,1752805577653,-460.0,0.00016438,2]
[372917410,1752805577678,-464.02653358,0.00016438,2]
[372917411,1752805577700,-460.0,0.00016438,2]
[372917412,1752805577724,-460.0,0.00016438,2]
[372917413,1752805577748,-460.0,0.00016438,2]
[372917414,1752805577771,-460.0,0.00016438,2]
[372917415,1752805577798,-470.30874864,0.00016438,2]
[372917416,1752805577821,-460.0,0.00016438,2]
[372917417,1752805577845,-460.0,0.00016438,2]
[372917418,1752805577869,-680.19,0.00016438,2]
[372917419,1752805577895,-601.08,0.00016438,2]
[372917420,1752805577921,-658.62,0.00016438,2]
[372917421,1752805577950,-161.82780063,0.00016438,2]
[372917429,1752805644131,-300.0,0.00016437,2]
[372917430,1752805644152,-298.17219937,0.00016438,2]
[372917431,1752805644173,-1146.58,0.00016438,2]
[372917432,1752805644194,-460.0,0.00016438,2]
[372917433,1752805644215,-221.26782481,0.00016438,2]
[372917444,1752805726199,3369.66766502,0.00025597,60]
[372917491,1752805832339,-619.98227305,0.00016338,2]
[372917492,1752805832349,-300.0,0.00016437,2]
[372917493,1752805832359,-1200.0,0.00016437,2]
[372917494,1752805832370,-199.03087342,0.00016438,2]
[372917495,1752805832379,-1573.78,0.00016438,2]
[372917496,1752805832388,-460.0,0.00016438,2]
[372917497,1752805832399,-460.0,0.00016438,2]
[372917498,1752805832408,-485.83,0.00016438,2]
[372917499,1752805832417,-120.95901525,0.00016438,2]
[372917500,1752805832429,-339.04098475,0.00016438,2]
[372917501,1752805832439,-460.0,0.00016438,2]
[372917502,1752805832448,-142.3694944,0.00016438,2]
[372917524,1752805838650,-162.0,0.00016437,2]
[372917525,1752805838660,-291.67243545,0.00016438,2]
[372917526,1752805838673,-25.95807015,0.00016438,2]
[372917527,1752805838683,-940.23,0.00016438,2]
[372917528,1752805838692,-466.50958474,0.00016438,2]
[372917529,1752805838701,-460.0,0.00016438,2]
[372917530,1752805838712,-423.01309441,0.00016438,2]
[372917531,1752805838721,-460.0,0.00016438,2]
[372917532,1752805838731,-460.0,0.00016438,2]
[372917533,1752805838740,-460.0,0.00016438,2]
[372917534,1752805838750,-460.0,0.00016438,2]
[372917535,1752805838760,-165.35828905,0.00016438,2]
[372917536,1752805838769,-488.87704508,0.00016438,2]
[372917537,1752805838779,-460.0,0.00016438,2]
[372917538,1752805838788,-460.0,0.00016438,2]
[372917539,1752805838798,-460.0,0.00016438,2]
[372917540,1752805838807,-1058.32,0.00016438,2]
[372917541,1752805838817,-283.69,0.00016438,2]
[372917542,1752805838826,-460.0,0.00016438,2]
[372917543,1752805838836,-460.0,0.00016438,2]
[372917544,1752805838845,-1622.21,0.00016438,2]
[372917545,1752805838855,-460.0,0.00016438,2]
[372917546,1752805838866,-500.0,0.00016438,2]
[372917547,1752805838875,-500.0,0.00016438,2]
[372917548,1752805838885,-641.51816423,0.00016438,2]
[372917549,1752805838895,-460.0,0.00016438,2]
[372917550,1752805838905,-460.0,0.00016438,2]
[372917551,1752805838914,-460.0,0.00016438,2]
[372917552,1752805838924,-845.39,0.00016438,2]
[372917553,1752805838933,-460.0,0.00016438,2]
[372917554,1752805838944,-460.0,0.00016438,2]
[372917555,1752805838954,-460.0,0.00016438,2]
[372917556,1752805838965,-460.0,0.00016438,2]
[372917557,1752805838975,-460.0,0.00016438,2]
[372917558,1752805838985,-460.0,0.00016438,2]
[372917559,1752805838995,-460.0,0.00016438,2]
[372917560,1752805839005,-460.0,0.00016438,2]
[372917561,1752805839015,-460.0,0.00016438,2]
[372917562,1752805839024,-460.0,0.00016438,2]
[372917563,1752805839034,-460.0,0.00016438,2]
[372917564,1752805839043,-707.36,0.00016438,2]
[372917565,1752805839053,-460.0,0.00016438,2]
[372917566,1752805839062,-460.0,0.00016438,2]
[372917567,1752805839072,-460.0,0.00016438,2]
[372917568,1752805839081,-2705.21,0.00016438,2]
[372917569,1752805839090,-643.6,0.00016438,2]
[372917570,1752805839100,-460.0,0.00016438,2]
[372917571,1752805839110,-460.0,0.00016438,2]
[372917572,1752805839119,-460.0,0.00016438,2]
[372917573,1752805839129,-460.0,0.00016438,2]
[372917574,1752805839138,-460.0,0.00016438,2]
[372917575,1752805839148,-460.0,0.00016438,2]
[372917576,1752805839158,-730.52,0.00016438,2]
[372917577,1752805839167,-460.0,0.00016438,2]
[372917578,1752805839176,-460.0,0.00016438,2]
[372917579,1752805839185,-460.0,0.00016438,2]
[372917580,1752805839194,-883.04,0.00016438,2]
[372917581,1752805839203,-460.0,0.00016438,2]
[372917582,1752805839212,-460.0,0.00016438,2]
[372917583,1752805839221,-460.0,0.00016438,2]
[372917584,1752805839230,-460.0,0.00016438,2]
[372917585,1752805839239,-1349.96,0.00016438,2]
[372917586,1752805839250,-460.0,0.00016438,2]
[372917587,1752805839259,-505.24110673,0.00016438,2]
[372917588,1752805839268,-211.00153815,0.00016473,2]
[372917589,1752805839277,-500.0,0.00016473,2]
[372917590,1752805839287,-500.0,0.00016473,2]
[372917591,1752805839298,-500.67533571,0.00016473,2]
[372917592,1752805839308,-503.61606287,0.00016473,2]
[372917593,1752805839317,-500.0,0.00016473,2]
[372917594,1752805839327,-500.0,0.00016473,2]
[372917595,1752805839459,-178.91846217,0.00016473,2]
[372917596,1752805839470,-486.59618896,0.00016473,2]
[372917597,1752805839480,-1876.80326234,0.00016612,2]
[372917598,1752805839490,-189639.72430837,0.00016612,2]
[372917599,1752805839500,-460.0,0.00016711,2]
[372917600,1752805839510,-460.0,0.00016711,2]
[372917601,1752805839520,-460.0,0.00016711,2]
[372917602,1752805839529,-795.5,0.00016711,2]
[372917603,1752805839539,-460.0,0.00016712,2]
[372917604,1752805839549,-460.0,0.00016712,2]
[372917605,1752805839559,-465.79532355,0.00016712,2]
[372917606,1752805839569,-461.60176073,0.00016712,2]
[372917607,1752805839579,-151.0,0.00016712,2]
[372917608,1752805839589,-151.43681,0.00016712,2]
[372917609,1752805839600,-460.0,0.00016712,2]
[372917610,1752805839609,-460.0,0.00016712,2]
[372917611,1752805839619,-460.0,0.00016712,2]
[372917612,1752805839628,-460.0,0.00016712,2]
[372917613,1752805839637,-460.0,0.00016712,2]
[372917614,1752805839647,-460.0,0.00016712,2]
[372917615,1752805839658,-460.0,0.00016712,2]
[372917616,1752805839668,-460.0,0.00016712,2]
[372917617,1752805839677,-476.5538885,0.00016712,2]
[372917618,1752805839687,-460.0,0.00016712,2]
[372917619,1752805839696,-460.0,0.00016712,2]
[372917620,1752805839705,-460.0,0.00016712,2]
[372917622,1752805839715,-472.29475165,0.00016712,2]
[372917624,1752805839724,-460.0,0.00016712,2]
[372917625,1752805839733,-1146.58,0.00016712,2]
[372917626,1752805839742,-1573.78,0.00016712,2]
[372917627,1752805839751,-460.0,0.00016712,2]
[372917628,1752805839761,-460.0,0.00016712,2]
[372917629,1752805839770,-485.83,0.00016712,2]
[372917630,1752805839779,-460.0,0.00016712,2]
[372917631,1752805839788,-460.0,0.00016712,2]
[372917632,1752805839797,-460.0,0.00016712,2]
[372917633,1752805839806,-940.23,0.00016712,2]
[372917634,1752805839815,-460.0,0.00016712,2]
[372917635,1752805839825,-460.0,0.00016712,2]
[372917636,1752805839835,-460.0,0.00016712,2]
[372917637,1752805839844,-460.0,0.00016712,2]
[372917638,1752805839853,-477.0018813,0.00016712,2]
[372917639,1752805839863,-460.0,0.00016712,2]
[372917640,1752805839872,-460.0,0.00016712,2]
[372917642,1752805839882,-1058.32,0.00016712,2]
[372917645,1752805839892,-460.0,0.00016712,2]
[372917648,1752805839901,-460.0,0.00016712,2]
[372917649,1752805839910,-1622.21,0.00016712,2]
[372917651,1752805839920,-460.0,0.00016712,2]
[372917652,1752805839929,-460.0,0.00016712,2]
[372917653,1752805839938,-460.0,0.00016712,2]
[372917654,1752805839947,-460.0,0.00016712,2]
[372917656,1752805839956,-845.39,0.00016712,2]
[372917657,1752805839965,-460.0,0.00016712,2]
[372917658,1752805839975,-460.0,0.00016712,2]
[372917659,1752805839984,-361.0945519,0.00016712,2]
[372917660,1752805839993,-460.0,0.00016712,2]
[372917661,1752805840002,-460.0,0.00016712,2]
[372917662,1752805840011,-460.0,0.00016712,2]
[372917663,1752805840021,-460.0,0.00016712,2]
[372917664,1752805840030,-460.0,0.00016712,2]
[372917665,1752805840039,-460.0,0.00016712,2]
[372917666,1752805840047,-707.36,0.00016712,2]
[372917667,1752805840056,-460.0,0.00016712,2]
[372917668,1752805840065,-302.48751571,0.00016712,2]
[372917669,1752805840074,-460.0,0.00016712,2]
[372917670,1752805840083,-2705.21,0.00016712,2]
[372917671,1752805840092,-643.6,0.00016712,2]
[372917672,1752805840102,-460.0,0.00016712,2]
[372917673,1752805840111,-460.0,0.00016712,2]
[372917674,1752805840120,-460.0,0.00016712,2]
[372917675,1752805840129,-460.0,0.00016712,2]
[372917676,1752805840139,-460.0,0.00016712,2]
[372917677,1752805840148,-460.0,0.00016712,2]
[372917678,1752805840159,-730.52,0.00016712,2]
[372917679,1752805840167,-460.0,0.00016712,2]
[372917680,1752805840176,-460.0,0.00016712,2]
[372917681,1752805840185,-460.0,0.00016712,2]
[372917682,1752805840194,-460.0,0.00016712,2]
[372917683,1752805840203,-883.04,0.00016712,2]
[372917684,1752805840212,-460.0,0.00016712,2]
[372917685,1752805840221,-460.0,0.00016712,2]
[372917686,1752805840231,-460.0,0.00016712,2]
[372917687,1752805840240,-608.84089523,0.00016712,2]
[372917688,1752805840249,-1349.96,0.00016712,2]
[372917689,1752805840257,-3376.72265734,0.00016946,2]
[372917690,1752805840267,-460.0,0.00016985,2]
[372917691,1752805840277,-460.0,0.00016985,2]
[372917692,1752805840288,-460.0,0.00016985,2]
[372917693,1752805840304,-795.5,0.00016985,2]
[372917694,1752805840313,-486.74037397,0.00016986,2]
[372917695,1752805840323,-151.0,0.00016986,2]
[372917696,1752805840333,-180.19272262,0.00016986,2]
[372917697,1752805840342,-460.0,0.00016986,2]
[372917698,1752805840351,-460.0,0.00016986,2]
[372917699,1752805840360,-460.0,0.00016986,2]
[372917700,1752805840371,-460.0,0.00016986,2]
[372917701,1752805840380,-460.0,0.00016986,2]
[372917702,1752805840390,-460.0,0.00016986,2]
[372917703,1752805840399,-462.62533365,0.00016986,2]
[372917704,1752805840409,-1146.58,0.00016986,2]
[372917705,1752805840418,-1573.78,0.00016986,2]
[372917706,1752805840427,-553.5,0.00016986,2]
[372917708,1752805840436,-460.0,0.00016986,2]
[372917709,1752805840446,-485.83,0.00016986,2]
[372917710,1752805840455,-460.0,0.00016986,2]
[372917711,1752805840464,-460.0,0.00016986,2]
[372917712,1752805840473,-460.0,0.00016986,2]
[372917713,1752805840482,-940.23,0.00016986,2]
[372917714,1752805840492,-460.0,0.00016986,2]
[372917715,1752805840505,-460.0,0.00016986,2]
[372917716,1752805840514,-460.0,0.00016986,2]
[372917717,1752805840523,-460.0,0.00016986,2]
[372917718,1752805840533,-460.0,0.00016986,2]
[372917719,1752805840542,-460.0,0.00016986,2]
[372917720,1752805840551,-1058.32,0.00016986,2]
[372917721,1752805840561,-460.0,0.00016986,2]
[372917722,1752805840570,-460.0,0.00016986,2]
[372917723,1752805840580,-1622.21,0.00016986,2]
[372917724,1752805840589,-460.0,0.00016986,2]
[372917725,1752805840599,-460.0,0.00016986,2]
[372917726,1752805840608,-460.0,0.00016986,2]
[372917727,1752805840618,-845.39,0.00016986,2]
[372917728,1752805840628,-460.0,0.00016986,2]
[372917729,1752805840637,-460.0,0.00016986,2]
[372917730,1752805840647,-460.0,0.00016986,2]
[372917731,1752805840659,-460.0,0.00016986,2]
[372917732,1752805840668,-460.0,0.00016986,2]
[372917733,1752805840677,-460.0,0.00016986,2]
[372917734,1752805840686,-460.0,0.00016986,2]
[372917735,1752805840695,-590.45146136,0.00016986,2]
[372917736,1752805840704,-707.36,0.00016986,2]
[372917737,1752805840713,-460.0,0.00016986,2]
[372917738,1752805840723,-460.0,0.00016986,2]
[372917739,1752805840732,-2705.21,0.00016986,2]
[372917740,1752805840742,-643.6,0.00016986,2]
[372917741,1752805840752,-194.48721038,0.00016986,2]
[372917742,1752805840761,-460.0,0.00016986,2]
[372917743,1752805840771,-460.0,0.00016986,2]
[372917744,1752805840780,-460.0,0.00016986,2]
[372917745,1752805840789,-460.0,0.00016986,2]
[372917746,1752805840799,-460.0,0.00016986,2]
[372917747,1752805840808,-730.52,0.00016986,2]
[372917748,1752805840817,-460.0,0.00016986,2]
[372917749,1752805840827,-460.0,0.00016986,2]
[372917750,1752805840837,-460.0,0.00016986,2]
[372917752,1752805840846,-460.0,0.00016986,2]
[372917753,1752805840856,-883.04,0.00016986,2]
[372917754,1752805840865,-460.0,0.00016986,2]
[372917755,1752805840875,-460.0,0.00016986,2]
[372917756,1752805840884,-460.0,0.00016986,2]
[372917757,1752805840894,-1349.96,0.00016986,2]
[372917758,1752805840905,-1000.0,0.00017021,2]
[372917759,1752805840915,-425.11403755,0.00017022,2]
[372917760,1752805840925,-328.15393407,0.00017046,2]
[372917761,1752805840934,-601.62375378,0.00017046,2]
[372917762,1752805840943,-518.84581112,0.00017046,2]
[372917763,1752805840953,-501.10163726,0.00017046,2]
[372917764,1752805840962,-500.0,0.00017046,2]
[372917765,1752805840974,-11145.09342344,0.00017214,2]
[372917766,1752805840985,-470.99606087,0.00017259,2]
[372917767,1752805840995,-460.0,0.00017259,2]
[372917768,1752805841005,-460.0,0.00017259,2]
[372917769,1752805841014,-795.5,0.00017259,2]
[372917770,1752805841023,-460.0,0.0001726,2]
[372917771,1752805841033,-460.0,0.0001726,2]
[372917772,1752805841042,-460.0,0.0001726,2]
[372917773,1752805841052,-460.0,0.0001726,2]
[372917774,1752805841063,-305.2109046,0.0001726,2]
[372917775,1752805841073,-460.0,0.0001726,2]
[372917776,1752805841084,-1146.58,0.0001726,2]
[372917777,1752805841097,-1573.78,0.0001726,2]
[372917778,1752805841106,-460.0,0.0001726,2]
[372917779,1752805841116,-485.83,0.0001726,2]
[372917780,1752805841125,-460.0,0.0001726,2]
[372917781,1752805841134,-460.0,0.0001726,2]
[372917782,1752805841144,-460.0,0.0001726,2]
[372917783,1752805841153,-940.23,0.0001726,2]
[372917784,1752805841162,-347.20925182,0.0001726,2]
[372917785,1752805841171,-460.0,0.0001726,2]
[372917786,1752805841180,-460.0,0.0001726,2]
[372917787,1752805841191,-460.0,0.0001726,2]
[372917788,1752805841201,-460.0,0.0001726,2]
[372917789,1752805841209,-460.0,0.0001726,2]
[372917790,1752805841218,-1058.32,0.0001726,2]
[372917791,1752805841227,-460.0,0.0001726,2]
[372917792,1752805841236,-460.0,0.0001726,2]
[372917793,1752805841246,-1622.21,0.0001726,2]
[372917794,1752805841255,-460.0,0.0001726,2]
[372917795,1752805841266,-460.0,0.0001726,2]
[372917796,1752805841275,-460.0,0.0001726,2]
[372917797,1752805841284,-845.39,0.0001726,2]
[372917798,1752805841298,-460.0,0.0001726,2]
[372917799,1752805841307,-460.0,0.0001726,2]
[372917800,1752805841317,-460.0,0.0001726,2]
[372917801,1752805841327,-460.0,0.0001726,2]
[372917802,1752805841336,-460.0,0.0001726,2]
[372917803,1752805841345,-460.0,0.0001726,2]
[372917804,1752805841355,-460.0,0.0001726,2]
[372917805,1752805841365,-707.36,0.0001726,2]
[372917806,1752805841375,-460.0,0.0001726,2]
[372917807,1752805841385,-460.0,0.0001726,2]
[372917808,1752805841395,-2705.21,0.0001726,2]
[372917809,1752805841404,-643.6,0.0001726,2]
[372917810,1752805841414,-460.0,0.0001726,2]
[372917811,1752805841423,-460.0,0.0001726,2]
[372917812,1752805841433,-460.0,0.0001726,2]
[372917813,1752805841442,-730.52,0.0001726,2]
[372917814,1752805841452,-460.0,0.0001726,2]
[372917815,1752805841461,-460.0,0.0001726,2]
[372917816,1752805841471,-460.0,0.0001726,2]
[372917817,1752805841482,-883.04,0.0001726,2]
[372917818,1752805841495,-460.0,0.0001726,2]
[372917819,1752805841505,-460.0,0.0001726,2]
[372917820,1752805841514,-460.0,0.0001726,2]
[372917821,1752805841524,-1349.96,0.0001726,2]
[372917822,1752805841535,-500.0,0.00017273,2]
[372917823,1752805841544,-301.60066525,0.00017273,2]
[372917824,1752805841553,-488.03076782,0.00017273,2]
[372917825,1752805841562,-500.0,0.00017273,2]
[372917826,1752805841573,-151.0,0.00017348,2]
[372917827,1752805841583,-500.0,0.00017348,2]
[372917828,1752805841593,-500.0,0.00017348,2]
[372917829,1752805841603,-500.0,0.00017348,2]
[372917830,1752805841612,-500.0,0.00017374,2]
[372917831,1752805841621,-500.0,0.00017374,2]
[372917832,1752805841631,-1876.80326234,0.00017434,2]
[372917833,1752805841640,-460.0,0.00017533,2]
[372917834,1752805841649,-582.89175917,0.00017533,2]
[372917835,1752805841661,-795.5,0.00017533,2]
[372917836,1752805841670,-460.0,0.00017534,2]
[372917837,1752805841680,-460.0,0.00017534,2]
[372917838,1752805841690,-479.2269231,0.00017534,2]
[372917839,1752805841699,-460.0,0.00017534,2]
[372917840,1752805841709,-460.0,0.00017534,2]
[372917841,1752805841718,-1146.58,0.00017534,2]
[372917842,1752805841728,-1573.78,0.00017534,2]
[372917843,1752805841737,-460.0,0.00017534,2]
[372917844,1752805841747,-485.83,0.00017534,2]
[372917845,1752805841756,-460.0,0.00017534,2]
[372917846,1752805841766,-460.0,0.00017534,2]
[372917847,1752805841776,-460.0,0.00017534,2]
[372917848,1752805841785,-940.23,0.00017534,2]
[372917849,1752805841795,-460.0,0.00017534,2]
[372917850,1752805841804,-460.0,0.00017534,2]
[372917851,1752805841814,-460.0,0.00017534,2]
[372917852,1752805841823,-460.0,0.00017534,2]
[372917853,1752805841832,-460.0,0.00017534,2]
[372917854,1752805841842,-1058.32,0.00017534,2]
[372917855,1752805841851,-362.54949545,0.00017534,2]
[372917856,1752805841861,-460.0,0.00017534,2]
[372917857,1752805841870,-1622.21,0.00017534,2]
[372917858,1752805841880,-460.0,0.00017534,2]
[372917859,1752805841889,-460.0,0.00017534,2]
[372917860,1752805841900,-460.0,0.00017534,2]
[372917861,1752805841912,-845.39,0.00017534,2]
[372917862,1752805841922,-460.0,0.00017534,2]
[372917863,1752805841931,-460.0,0.00017534,2]
[372917864,1752805841940,-460.0,0.00017534,2]
[372917865,1752805841951,-546.79492519,0.00017534,2]
[372917866,1752805841962,-460.0,0.00017534,2]
[372917867,1752805841973,-460.0,0.00017534,2]
[372917868,1752805841984,-460.0,0.00017534,2]
[372917869,1752805841994,-707.36,0.00017534,2]
[372917870,1752805842004,-460.0,0.00017534,2]
[372917871,1752805842013,-460.0,0.00017534,2]
[372917872,1752805842023,-2705.21,0.00017534,2]
[372917873,1752805842032,-643.6,0.00017534,2]
[372917874,1752805842044,-460.0,0.00017534,2]
[372917875,1752805842053,-460.0,0.00017534,2]
[372917876,1752805842063,-460.0,0.00017534,2]
[372917877,1752805842074,-730.52,0.00017534,2]
[372917878,1752805842084,-460.0,0.00017534,2]
[372917879,1752805842095,-156.37751188,0.00017534,2]
[372917880,1752805842105,-883.04,0.00017534,2]
[372917881,1752805842114,-460.0,0.00017534,2]
[372917882,1752805842123,-486.74287168,0.00017534,2]
[372917883,1752805842133,-478.19149582,0.00017534,2]
[372917884,1752805842142,-460.0,0.00017534,2]
[372917885,1752805842154,-1349.96,0.00017534,2]
[372917886,1752805842163,-500.0,0.00017568,2]
[372917887,1752805842173,-619.98227298,0.00017646,2]
[372917888,1752805842188,-795.5,0.00017807,2]
[372917890,1752805842198,-151.0,0.00017808,2]
[372917891,1752805842207,-460.0,0.00017808,2]
[372917892,1752805842216,-460.0,0.00017808,2]
[372917893,1752805842226,-460.0,0.00017808,2]
[372917894,1752805842235,-460.0,0.00017808,2]
[372917895,1752805842244,-1146.58,0.00017808,2]
[372917896,1752805842253,-1573.78,0.00017808,2]
[372917897,1752805842262,-460.0,0.00017808,2]
[372917898,1752805842272,-485.83,0.00017808,2]
[372917899,1752805842281,-496.13,0.00017808,2]
[372917900,1752805842293,-460.0,0.00017808,2]
[372917901,1752805842303,-460.0,0.00017808,2]
[372917902,1752805842416,-940.23,0.00017808,2]
[372917903,1752805842426,-460.0,0.00017808,2]
[372917904,1752805842436,-460.0,0.00017808,2]
[372917905,1752805842447,-460.0,0.00017808,2]
[372917906,1752805842457,-460.0,0.00017808,2]
[372917907,1752805842467,-1058.32,0.00017808,2]
[372917908,1752805842476,-460.0,0.00017808,2]
[372917909,1752805842487,-1622.21,0.00017808,2]
[372917910,1752805842496,-192.53,0.00017808,2]
[372917911,1752805842506,-460.0,0.00017808,2]
[372917912,1752805842516,-460.0,0.00017808,2]
[372917913,1752805842525,-845.39,0.00017808,2]
[372917914,1752805842535,-460.0,0.00017808,2]
[372917915,1752805842544,-460.0,0.00017808,2]
[372917916,1752805842554,-432.44957427,0.00017808,2]
[372917917,1752805842564,-460.0,0.00017808,2]
[372917918,1752805842573,-460.0,0.00017808,2]
[372917919,1752805842583,-460.0,0.00017808,2]
[372917920,1752805842592,-707.36,0.00017808,2]
[372917921,1752805842601,-460.0,0.00017808,2]
[372917922,1752805842611,-2705.21,0.00017808,2]
[372917923,1752805842620,-643.6,0.00017808,2]
[372917924,1752805842629,-261.4164914,0.00017808,2]
[372917925,1752805842639,-460.0,0.00017808,2]
[372917926,1752805842648,-460.0,0.00017808,2]
[372917927,1752805842658,-730.52,0.00017808,2]
[372917928,1752805842668,-460.0,0.00017808,2]
[372917929,1752805842677,-883.04,0.00017808,2]
[372917930,1752805842690,-460.0,0.00017808,2]
[372917931,1752805842699,-460.0,0.00017808,2]
[372917932,1752805842709,-1349.96,0.00017808,2]
[372917933,1752805842718,-476.25663856,0.00017837,2]
[372917934,1752805842728,-160.0,0.00017875,2]
[372917935,1752805842738,-160.0,0.00017875,2]
[372917937,1752805842748,-160.0,0.00017875,2]
[372917939,1752805842758,-160.0,0.00017875,2]
[372917941,1752805842768,-160.0,0.00017875,2]
[372917943,1752805842779,-525.75194068,0.00017875,2]
[372917945,1752805842788,-160.0,0.00017875,2]
[372917946,1752805842797,-214.4881157,0.00017875,2]
[372917947,1752805842807,-215.63268315,0.00017875,2]
[372917948,1752805842816,-160.0,0.00017875,2]
[372917949,1752805842825,-839.30593155,0.00017875,2]
[372917950,1752805842835,-230.89969799,0.00017875,2]
[372917952,1752805842844,-12610.43989422,0.00017875,2]
[372917954,1752805842854,-500.0,0.00017896,2]
[372917955,1752805842864,-420.0,0.00017963,2]
[372917956,1752805842873,-153.09266023,0.00018,2]
[372917958,1752805842882,-25000.0,0.00018026,2]
[372917959,1752805842891,-151.88071785,0.00018026,2]
[372917960,1752805842901,-151.0,0.00018026,2]
[372917961,1752805842911,-151.0,0.00018026,2]
[372917962,1752805842921,-500.0,0.00018026,2]
[372917963,1752805842930,-151.0,0.00018026,2]
[372917964,1752805842940,-500.0,0.00018026,2]
[372917965,1752805842949,-12956.77546059,0.00018026,2]